{"text_format":"1","workbook":"xlsx","n_sheets":2,"sheets":["LOG_IND","REPONSES"],"not_rendered":{"charts":0,"images":0,"macros":1,"external_links":0,"defined_names":0,"comments":0,"pivot_tables":0},"unopened":[],"bounds":{"document_bytes":16777216,"sheet_cells":100000,"rows_first":2000,"rows_last":500,"rows_between":2000,"halvings":0,"cell_chars":16384,"cell_head_chars":4096},"cells_cut":0,"cells_raw":0,"read":"whole","date_system":"1900"}

{"sheet":"LOG_IND","index":0,"n_rows":50,"n_cols":3,"rows_kept":50,"cut":false,"hidden":false,"merged":[[14,0,14,1],[0,0,0,2]]}
["UKRAINE - LOGEMENT INDIVIDUEL"]
[]
[null,"Personne de contact","Contact pour le logement"]
["Date de l'appel",null,"à remplir si <> de contact"]
["Nom"]
["Prénom"]
["Rue et no."]
["NPA"]
["Localité"]
["Tél"]
["Natel"]
["Email"]
["Remarque"]
[]
["Logement"]
["Rue"]
["No"]
["Complément adresse"]
["NPA"]
["Localité"]
["Région"]
["Type de logement"]
["Type de location"]
["Prix du loyer (sans charges)"]
["Charges"]
["Total frais de location",{"$f":"SUM(B24:B25)","v":0}]
["Début "]
["Durée (en mois)"]
["Grandeur"]
["Surface habitable (m2)"]
["Nombre de niveaux"]
["Etage"]
["Cuisine"]
["Nombre de chambres à coucher"]
["Nombre de personnes"]
["Cave"]
["Meublé"]
["Equipement spécial"]
["Equipement remarque"]
["Chauffage"]
["Murs avec lambris"]
["Etat du logement"]
["Proche des transports publics"]
["Proche des commerces"]
["Ascenseur"]
["Animaux domestiques"]
["Logement proposé par"]
["Parking"]
[]
["Remarque"]

{"sheet":"REPONSES","index":1,"n_rows":55,"n_cols":4,"rows_kept":55,"cut":false,"hidden":false,"merged":[]}
[]
[]
["Type de logement",null,"Rue",{"$f":"LOG_IND!B16","v":0}]
["appartement",null,"No",{"$f":"LOG_IND!B17","v":0}]
["chalet",null,"Complément adresse",{"$f":"LOG_IND!B18","v":0}]
["maison",null,"NPA",{"$f":"LOG_IND!B19","v":0}]
[null,null,"Localité",{"$f":"LOG_IND!B20","v":0}]
["Grandeur du logement",null,"Région",{"$f":"LOG_IND!B21","v":0}]
["studio",null,"Type de logement",{"$f":"LOG_IND!B22","v":0}]
["1 - 1.5",null,"Type de location",{"$f":"LOG_IND!B23","v":0}]
["2 - 2.5",null,"Prix du loyer (sans charges)",{"$f":"LOG_IND!B24","v":0}]
["3 - 3.5",null,"Charges",{"$f":"LOG_IND!B25","v":0}]
["4 - 4.5",null,"Total frais de location",{"$f":"LOG_IND!B26","v":0}]
["5 - 5.5",null,"Début ",{"$f":"LOG_IND!B27","v":"00:00:00"}]
["6 - 6.5",null,"Durée (en mois)",{"$f":"LOG_IND!B28","v":0}]
["7 et plus",null,"Grandeur",{"$f":"LOG_IND!B29","v":0}]
[null,null,"Surface habitable (m2)",{"$f":"LOG_IND!B30","v":0}]
["oui/non",null,"Nombre de niveaux",{"$f":"LOG_IND!B31","v":0}]
["oui",null,"Etage",{"$f":"LOG_IND!B32","v":0}]
["non",null,"Cuisine",{"$f":"LOG_IND!B33","v":0}]
[null,null,"Nombre de chambres à coucher",{"$f":"LOG_IND!B34","v":0}]
["Nombre de chambres",null,"Nombre de personnes",{"$f":"LOG_IND!B35","v":0}]
[1,null,"Cave",{"$f":"LOG_IND!B36","v":0}]
[2,null,"Meublé",{"$f":"LOG_IND!B37","v":0}]
[3,null,"Equipement spécial",{"$f":"LOG_IND!B38","v":0}]
[4,null,"Equipement remarque",{"$f":"LOG_IND!B39","v":0}]
[5,null,"Chauffage",{"$f":"LOG_IND!B40","v":0}]
["6 et plus",null,"Murs avec lambris",{"$f":"LOG_IND!B41","v":0}]
[null,null,"Etat du logement",{"$f":"LOG_IND!B42","v":0}]
["Région",null,"Proche des transports publiques",{"$f":"LOG_IND!B43","v":0}]
["Haut-Valais",null,"Proche des commerces",{"$f":"LOG_IND!B44","v":0}]
["Valais central",null,"Ascenseur",{"$f":"LOG_IND!B45","v":0}]
["Bas-Valais",null,"Animaux domestiques",{"$f":"LOG_IND!B46","v":0}]
[null,null,"Logement proposé par",{"$f":"LOG_IND!B47","v":0}]
["Type chauffage",null,"Parking",{"$f":"LOG_IND!B48","v":0}]
["Bois",null,"Remarque",{"$f":"LOG_IND!B50","v":0}]
["Eléctrique",null,"Date de l'appel",{"$f":"LOG_IND!B4","v":"00:00:00"}]
["Fioul",null,"Nom",{"$f":"LOG_IND!B5","v":0}]
["Gaz",null,"Prénom",{"$f":"LOG_IND!B6","v":0}]
["Pompe à chaleur",null,"Rue et no.",{"$f":"LOG_IND!B7","v":0}]
["Solaire",null,"NPA",{"$f":"LOG_IND!B8","v":0}]
[null,null,"Localité",{"$f":"LOG_IND!B9","v":0}]
["Type de location",null,"Tél",{"$f":"LOG_IND!B10","v":0}]
["mise à disposition (gratuite)",null,"Natel",{"$f":"LOG_IND!B11","v":0}]
["frais courants",null,"Email",{"$f":"LOG_IND!B12","v":0}]
["location",null,"Remarque",{"$f":"LOG_IND!B13","v":0}]
[null,null,"Nom",{"$f":"LOG_IND!C5","v":0}]
["Proposé par",null,"Prénom",{"$f":"LOG_IND!C6","v":0}]
["Agence",null,"Rue et no.",{"$f":"LOG_IND!C7","v":0}]
["Association",null,"NPA",{"$f":"LOG_IND!C8","v":0}]
["Privé",null,"Localité",{"$f":"LOG_IND!C9","v":0}]
[null,null,"Tél",{"$f":"LOG_IND!C10","v":0}]
[null,null,"Natel",{"$f":"LOG_IND!C11","v":0}]
[null,null,"Email",{"$f":"LOG_IND!C12","v":0}]
[null,null,"Remarque",{"$f":"LOG_IND!C13","v":0}]